Workbook

Sheet Mittelhilfstabelle
A2: Stunde | B2: Wind | C2: Luftfeuchtigkeit | D2: Luftdruck | E2: Taupunkttemperatur | F2: Bewölkung | H2: Stunde | I2: Wind | J2: Luftfeuchtigkeit | K2: Luftdruck | L2: Taupunkttemperatur | M2: Bewölkung
A3: 00 | B3: 0 | C3: 87 | D3: 1019.4 | E3: 14.7 | F3: 5 | H3: 00 | I3: 1 | J3: 68 | K3: 1012.7 | L3: 18.1 | M3: 8
A4: 01 | B4: 0 | C4: 89 | D4: 1019.2 | E4: 14.7 | F4: 3 | H4: 01 | I4: 1 | J4: 91 | K4: 1013 | L4: 18.5 | M4: 8
A5: 02 | B5: 0 | C5: 92 | D5: 1019.1 | E5: 14.3 | F5: 2 | H5: 02 | I5: 1 | J5: 95 | K5: 1012.1 | L5: 18.3 | M5: 8
A6: 03 | B6: 0 | C6: 93 | D6: 1019.3 | E6: 13.9 | F6: 1 | H6: 03 | I6: 1 | J6: 95 | K6: 1014 | L6: 18.3 | M6: 8
A7: 04 | B7: 1 | C7: 94 | D7: 1019.4 | E7: 13.6 | F7: 2 | H7: 04 | I7: 0 | J7: 97 | K7: 1012.7 | L7: 17.8 | M7: 8
A8: 05 | B8: 1 | C8: 94 | D8: 1019.3 | E8: 13.5 | F8: 1 | H8: 05 | I8: 0 | J8: 98 | K8: 1012.6 | L8: 17.9 | M8: 7
A9: 06 | B9: 0 | C9: 92 | D9: 1019.4 | E9: 14.8 | F9: 1 | H9: 06 | I9: 0 | J9: 98 | K9: 1013.2 | L9: 18.4 | M9: 8
A10: 07 | B10: 0 | C10: 86 | D10: 1019.5 | E10: 16.1 | F10: 2 | H10: 07 | I10: 0 | J10: 96 | K10: 1013.5 | L10: 18.7 | M10: 8
A11: 08 | B11: 0 | C11: 77 | D11: 1019.5 | E11: 17.6 | F11: 2 | H11: 08 | I11: 0 | J11: 92 | K11: 1013.9 | L11: 19.2 | M11: 8
A12: 09 | B12: 0 | C12: 61 | D12: 1019.2 | E12: 16.3 | F12: 6 | H12: 09 | I12: 1 | J12: 91 | K12: 1013.9 | L12: 19.7 | M12: 8
A13: 10 | B13: 1 | C13: 61 | D13: 1018.8 | E13: 16.6 | F13: 7 | H13: 10 | I13: 1 | J13: 80 | K13: 1013.8 | L13: 19.4 | M13: 7
A14: 11 | B14: 1 | C14: 55 | D14: 1018.7 | E14: 16.3 | F14: 6 | H14: 11 | I14: 1 | J14: 78 | K14: 1013.5 | L14: 19.3 | M14: 7
A15: 12 | B15: 1 | C15: 57 | D15: 1018.3 | E15: 16.5 | F15: 5 | H15: 12 | I15: 1 | J15: 74 | K15: 1013.2 | L15: 19.6 | M15: 7
A16: 13 | H16: 13 | I16: 1 | J16: 81 | K16: 1013.2 | L16: 19.4 | M16: 7
A17: 14 | H17: 14 | I17: 1 | J17: 82 | K17: 1012.3 | L17: 18.6 | M17: 7
A18: 15 | H18: 15 | I18: 0 | J18: 80 | K18: 1012.2 | L18: 18.8 | M18: 7
A19: 16 | H19: 16 | I19: 1 | J19: 76 | K19: 1011.3 | L19: 18.8 | M19: 7
A20: 17 | H20: 17 | I20: 1 | J20: 77 | K20: 1011.1 | L20: 18.4 | M20: 7
A21: 18 | H21: 18 | I21: 1 | J21: 78 | K21: 1010.6 | L21: 17.9 | M21: 8
A22: 19 | H22: 19 | I22: 1 | J22: 90 | K22: 1011 | L22: 18 | M22: 8
A23: 20 | H23: 20 | I23: 1 | J23: 94 | K23: 1011.5 | L23: 16.7 | M23: 8
A24: 21 | H24: 21 | I24: 1 | J24: 96 | K24: 1011.8 | L24: 16.7 | M24: 8
A25: 22 | H25: 22 | I25: 0 | J25: 97 | K25: 1012 | L25: 16.9 | M25: 8
A26: 23 | H26: 23 | I26: 1 | J26: 96 | K26: 1012.3 | L26: 17.2 | M26: 8
A27: Mittel | B27: =ROUND(AVERAGE(B3:B26),1) -> 0.4 | C27: =ROUND(AVERAGE(C3:C26),1) -> 79.8 | D27: =ROUND(AVERAGE(D3:D26),1) -> 1019.2 | E27: =AVERAGE(E3:E26) -> 15.3 | F27: =ROUND(AVERAGE(F3:F26),1) -> 3.3 | H27: Mittel | I27: =ROUND(AVERAGE(I3:I26),1) -> 0.7 | J27: =ROUND(AVERAGE(J3:J26),1) -> 87.5 | K27: =ROUND(AVERAGE(K3:K26),1) -> 1012.6 | L27: =AVERAGE(L3:L26) -> 18.35833333 | M27: =ROUND(AVERAGE(M3:M26),1) -> 7.6
E29: 2013-08-01 | L29: 2013-07-29
A32: Stunde | B32: Wind | C32: Luftfeuchtigkeit | D32: Luftdruck | E32: Taupunkttemperatur | F32: Bewölkung | H32: Stunde | I32: Wind | J32: Luftfeuchtigkeit | K32: Luftdruck | L32: Taupunkttemperatur | M32: Bewölkung
A33: 00 | B33: 1 | C33: 95 | D33: 1012.7 | E33: 16 | F33: 8 | H33: 00 | I33: 1 | J33: 69 | K33: 1017.5 | L33: 13.4 | M33: 7
A34: 01 | B34: 1 | C34: 96 | D34: 1013.8 | E34: 15.8 | F34: 8 | H34: 01 | I34: 0 | J34: 71 | K34: 1017.2 | L34: 13.2 | M34: 3
A35: 02 | B35: 1 | C35: 95 | D35: 1014.1 | E35: 15.5 | F35: 8 | H35: 02 | I35: 0 | J35: 78 | K35: 1017 | L35: 12.9 | M35: 1
A36: 03 | B36: 1 | C36: 95 | D36: 1014.3 | E36: 15.4 | F36: 8 | H36: 03 | I36: 0 | J36: 81 | K36: 1016.5 | L36: 12.7 | M36: 1
A37: 04 | B37: 1 | C37: 94 | D37: 1014.8 | E37: 15.2 | F37: 8 | H37: 04 | I37: 1 | J37: 75 | K37: 1016.2 | L37: 12.6 | M37: 3
A38: 05 | B38: 1 | C38: 93 | D38: 1015.4 | E38: 15 | F38: 8 | H38: 05 | I38: 1 | J38: 73 | K38: 1016.2 | L38: 13.2 | M38: 6
A39: 06 | B39: 1 | C39: 92 | D39: 1016 | E39: 15.3 | F39: 8 | H39: 06 | I39: 0 | J39: 76 | K39: 1016.3 | L39: 14.2 | M39: 6
A40: 07 | B40: 1 | C40: 91 | D40: 1017 | E40: 15.4 | F40: 8 | H40: 07 | I40: 1 | J40: 74 | K40: 1016.2 | L40: 14.7 | M40: 7
A41: 08 | B41: 1 | C41: 87 | D41: 1017.4 | E41: 16.1 | F41: 7 | H41: 08 | I41: 1 | J41: 74 | K41: 1016.4 | L41: 15.1 | M41: 7
A42: 09 | B42: 1 | C42: 81 | D42: 1017.5 | E42: 16.5 | F42: 5 | H42: 09 | I42: 1 | J42: 72 | K42: 1016.3 | L42: 15.5 | M42: 8
A43: 10 | B43: 1 | C43: 77 | D43: 1017.6 | E43: 15.5 | F43: 5 | H43: 10 | I43: 1 | J43: 81 | K43: 1016.6 | L43: 16.7 | M43: 6
A44: 11 | B44: 1 | C44: 66 | D44: 1017.4 | E44: 15.4 | F44: 6 | H44: 11 | I44: 1 | J44: 72 | K44: 1016.8 | L44: 15.7 | M44: 7
A45: 12 | B45: 0 | C45: 86 | D45: 1017.5 | E45: 16.4 | F45: 6 | H45: 12 | I45: 1 | J45: 66 | K45: 1017 | L45: 14.9 | M45: 7
A46: 13 | B46: 1 | C46: 75 | D46: 1016.9 | E46: 17.3 | F46: 6 | H46: 13 | I46: 1 | J46: 65 | K46: 1016.9 | L46: 15.6 | M46: 7
A47: 14 | B47: 1 | C47: 67 | D47: 1017 | E47: 15 | F47: 6 | H47: 14 | I47: 1 | J47: 82 | K47: 1017.3 | L47: 16.3 | M47: 7
A48: 15 | B48: 1 | C48: 60 | D48: 1017 | E48: 14.4 | F48: 5 | H48: 15 | I48: 1 | J48: 69 | K48: 1017.1 | L48: 16.6 | M48: 7
A49: 16 | B49: 1 | C49: 56 | D49: 1016.5 | E49: 14.2 | F49: 5 | H49: 16 | I49: 1 | J49: 71 | K49: 1017.9 | L49: 14.8 | M49: 7
A50: 17 | B50: 1 | C50: 54 | D50: 1016.5 | E50: 14 | F50: 4 | H50: 17 | I50: 1 | J50: 70 | K50: 1017.8 | L50: 15.4 | M50: 7
A51: 18 | B51: 1 | C51: 53 | D51: 1016.4 | E51: 12.9 | F51: 3 | H51: 18 | I51: 1 | J51: 72 | K51: 1018 | L51: 15.8 | M51: 8
A52: 19 | B52: 0 | C52: 61 | D52: 1016.5 | E52: 13.9 | F52: 3 | H52: 19 | I52: 1 | J52: 72 | K52: 1018 | L52: 15.4 | M52: 7
A53: 20 | B53: 1 | C53: 66 | D53: 1017 | E53: 13.2 | F53: 3 | H53: 20 | I53: 1 | J53: 74 | K53: 1018.4 | L53: 15.2 | M53: 7
A54: 21 | B54: 1 | C54: 72 | D54: 1017.3 | E54: 13.5 | F54: 5 | H54: 21 | I54: 0 | J54: 78 | K54: 1019 | L54: 15 | M54: 7
A55: 22 | B55: 1 | C55: 72 | D55: 1017.5 | E55: 13.9 | F55: 7 | H55: 22 | I55: 1 | J55: 78 | K55: 1019.2 | L55: 14.9 | M55: 5
A56: 23 | B56: 1 | C56: 71 | D56: 1017.3 | E56: 13.9 | F56: 7 | H56: 23 | I56: 0 | J56: 83 | K56: 1019.5 | L56: 15.1 | M56: 5
A57: Mittel | B57: =ROUND(AVERAGE(B33:B56),1) -> 0.9 | C57: =ROUND(AVERAGE(C33:C56),1) -> 77.3 | D57: =ROUND(AVERAGE(D33:D56),1) -> 1016.3 | E57: =AVERAGE(E33:E56) -> 14.9875 | F57: =ROUND(AVERAGE(F33:F56),1) -> 6.1 | H57: Mittel | I57: =ROUND(AVERAGE(I33:I56),1) -> 0.8 | J57: =ROUND(AVERAGE(J33:J56),1) -> 74 | K57: =ROUND(AVERAGE(K33:K56),1) -> 1017.3 | L57: =AVERAGE(L33:L56) -> 14.7875 | M57: =ROUND(AVERAGE(M33:M56),1) -> 6
E59: 2013-07-30 | L59: 2013-07-31

Sheet Kurztabelle
A2: Wetterwarte: Köttewitz | L2: Monat: | M2: Juli | Y2: Jahr: | Z2: 2013
A4: Dat. | B4: TTT | C4: TxTx | D4: TnTn | E4: Tg | F4: Umin. | G4: UU | H4: NN | I4: RRRR | J4: Art | L4: sss | M4: PPPP | N4: eee | O4: fff | R4: Tage mit | V4: fk | W4: Summe
J5: * | O5: Bft | P5: SS | Q5: Art ( D ) | R5: RR | S5: Ge | T5: Bf6 | U5: Bf8 | V5: Bft | W5: Gewitter
A6: 01. | B6: 18.4 | C6: 24.2 | D6: 12.4 | E6: 12.8 | F6: 41 | G6: 65 | H6: 5.6 | I6: . | L6: 12.1 | M6: 1018.9 | N6: 11.3 | O6: 1 | V6: 3 | AA6: max >=30,0°C | AB6: max >=25,0°C | AC6: max <0,0°C | AE6: RR >=0,1 mm | AF6: RR >=1,0 mm | AG6: RR >=3,0 mm | AH6: RR >=10,0 mm
A7: 02. | B7: 18.8 | C7: 25.1 | D7: 12.7 | E7: 12.2 | F7: 47 | G7: 75 | H7: 5 | I7: 0.3 | J7: R | L7: 9.3 | M7: 1014.8 | N7: 14 | O7: 1 | R7: 1 | V7: 3 | AA7: =COUNTIF(C6:C15,">=30") -> 0 | AB7: =COUNTIF(C6:C15,">=25") -> 4 | AC7: =COUNTIF(C6:C15,"<0") -> 0 | AE7: =COUNTIF(I6:I15,">=0,1") -> 2 | AF7: =COUNTIF(I6:I15,">=1") -> 1 | AG7: =COUNTIF(I6:I15,">=3") -> 0 | AH7: =COUNTIF(I6:I15,">=10") -> 0
A8: 03. | B8: 18.7 | C8: 25 | D8: 12.7 | E8: 12.8 | F8: 55 | G8: 82 | H8: 6.2 | I8: 1.5 | J8: R | L8: 2.5 | M8: 1012.2 | N8: 15.4 | O8: 1 | R8: 1 | V8: 3 | AA8: =COUNTIF(C18:C27,">=30") -> 0 | AB8: =COUNTIF(C18:C27,">=25") -> 5 | AC8: =COUNTIF(C18:C27,"<0") -> 0 | AE8: =COUNTIF(I18:I27,">=0,1") -> 0 | AF8: =COUNTIF(I18:I27,">=1") -> 0 | AG8: =COUNTIF(I18:I27,">=3") -> 0 | AH8: =COUNTIF(I18:I27,">=10") -> 0
A9: 04. | B9: 18.8 | C9: 22.8 | D9: 13.4 | E9: 13.3 | F9: 67 | G9: 82 | H9: 5.7 | I9: . | L9: 6.8 | M9: 1019.1 | N9: 15.6 | O9: 1 | V9: 2 | AA9: =COUNTIF(C30:C40,">=30") -> 4 | AB9: =COUNTIF(C30:C40,">=25") -> 8 | AC9: =COUNTIF(C30:C40,"<0") -> 0 | AE9: =COUNTIF(I30:I40,">=0,1") -> 4 | AF9: =COUNTIF(I30:I40,">=1") -> 2 | AG9: =COUNTIF(I30:I40,">=3") -> 2 | AH9: =COUNTIF(I30:I40,">=10") -> 2
A10: 05. | B10: 18.9 | C10: 24.3 | D10: 16.4 | E10: 16.7 | F10: 60 | G10: 84 | H10: 7.1 | I10: 0 | L10: 1.4 | M10: 1026 | N10: 16.2 | O10: 1 | V10: 3
A11: 06. | B11: 19.2 | C11: 24.3 | D11: 14.4 | E11: 14.4 | F11: 57 | G11: 79 | H11: 5.6 | I11: . | L11: 10.2 | M11: 1030.1 | N11: 15.3 | O11: 1 | V11: 2 | AA11: min <0,0°C | AB11: min <0-10,0°C | AE11: rel.Lf. 14h >=70% | AG11: rel.Lf. 14h <=40%
A12: 07. | B12: 18.4 | C12: 24.4 | D12: 11.8 | E12: 12.2 | F12: 43 | G12: 72 | H12: 0.7 | I12: . | L12: 13 | M12: 1029.6 | N12: 12.8 | O12: 1 | V12: 2 | AA12: =COUNTIF(D6:D15,"<0") -> 0 | AB12: =COUNTIF(D6:D15,"<=-10") -> 0 | AE12: =COUNTIF(F6:F15,">=70") -> 0 | AG12: =COUNTIF(F6:F15,"<=40") -> 0
A13: 08. | B13: 19.1 | C13: 25.6 | D13: 11.4 | E13: 11.7 | F13: 45 | G13: 72 | H13: 1.8 | I13: . | L13: 11.7 | M13: 1028.9 | N13: 13.5 | O13: 1 | V13: 3 | AA13: =COUNTIF(D18:D27,"<0") -> 0 | AB13: =COUNTIF(D18:D27,"<=-10") -> 0 | AE13: =COUNTIF(F18:F27,">=70") -> 0 | AG13: =COUNTIF(F18:F27,"<=40") -> 0
A14: 09. | B14: 20.2 | C14: 27.1 | D14: 13 | E14: 12.8 | F14: 43 | G14: 71 | H14: 1.6 | I14: . | L14: 12.1 | M14: 1023.6 | N14: 14.4 | O14: 1 | V14: 2 | AA14: =COUNTIF(D30:D40,"<0") -> 0 | AB14: =COUNTIF(D30:D40,"<=-10") -> 0 | AE14: =COUNTIF(F30:F40,">=70") -> 0 | AG14: =COUNTIF(F30:F40,"<=40") -> 7
A15: 10. | B15: 18.9 | C15: 24.1 | D15: 14 | E15: 13.9 | F15: 52 | G15: 73 | H15: 3.6 | I15: . | L15: 10.9 | M15: 1016.8 | N15: 13.7 | O15: 1 | V15: 4
A16: Su | B16: =SUM(B6:B15) -> 189.4 | C16: =SUM(C6:C15) -> 246.9 | D16: =SUM(D6:D15) -> 132.2 | E16: =SUM(E6:E15) -> 132.8 | F16: XXX | G16: =SUM(G6:G15) -> 755 | H16: =SUM(H6:H15) -> 42.9 | I16: =SUM(I6:I15) -> 1.8 | J16: =SUM(K6:K15) -> 0 | L16: =SUM(L6:L15) -> 90 | M16: =SUM(M6:M15) -> 10220 | N16: =SUM(N6:N15) -> 142.2 | O16: =SUM(O6:O15) -> 10 | P16: =COUNT(P6:P15) -> 0 | Q16: X | R16: =SUM(R6:R15) -> 2 | S16: =SUM(S6:S15) -> 0 | T16: =SUM(T6:T15) -> 0 | U16: =SUM(U6:U15) -> 0 | V16: XXX | AA16: ohne Sonne | AB16: Son. 0,1-0,9 | AC16: Son. >=10,0 | AE16: Sch. >=1 cm | AF16: Sch. >=3 cm | AG16: Sch. >=10 cm
A17: Mi | B17: =AVERAGE(B6:B15) -> 18.94 | C17: =AVERAGE(C16/10) -> 24.69 | D17: =AVERAGE(D16/10) -> 13.22 | E17: =E16/10 -> 13.28 | F17: XXX | G17: =AVERAGE(G16/10) -> 75.5 | H17: =AVERAGE(H16/10) -> 4.29 | I17: XXXXX | J17: XX | L17: XXXX | M17: =AVERAGE(M16/10) -> 1022 | N17: =AVERAGE(N16/10) -> 14.22 | O17: =O16/10 -> 1 | P17: XXX | Q17: X | R17: XX | S17: XX | T17: XX | U17: XX | V17: =AVERAGE(V6:V15) -> 2.7 | AA17: =COUNTIF(L6:L15,".") -> 0 | AB17: =COUNTIF(L6:L15,"<1") -> 0 | AC17: =COUNTIF(L6:L15,">=10") -> 6 | AE17: =COUNTIF(P6:P15,">=1") -> 0 | AF17: =COUNTIF(P6:P15,">=3") -> 0 | AG17: =COUNTIF(P6:P15,">=10") -> 0
A18: 11. | B18: 14.7 | C18: 16.8 | D18: 11.9 | E18: 11.7 | F18: 67 | G18: 79 | H18: 7.3 | I18: 0 | L18: . | M18: 1017.4 | N18: 11 | O18: 1 | V18: 3 | AA18: =COUNTIF(L18:L27,".") -> 1 | AB18: =COUNTIF(L18:L27,"<1") -> 0 | AC18: =COUNTIF(L18:L27,">=10") -> 4 | AE18: =COUNTIF(P18:P27,">=1") -> 0 | AF18: =COUNTIF(P18:P27,">=3") -> 0 | AG18: =COUNTIF(P18:P27,">=10") -> 0
A19: 12. | B19: 16.4 | C19: 21 | D19: 12.4 | E19: 11.7 | F19: 58 | G19: 75 | H19: 7 | I19: . | L19: 3.1 | M19: 1019.6 | N19: 11.7 | O19: 1 | V19: 3 | AA19: =COUNTIF(L30:L40,".") -> 0 | AB19: =COUNTIF(L30:L40,"<1") -> 1 | AC19: =COUNTIF(L30:L40,">=10") -> 4 | AE19: =COUNTIF(P30:P40,">=1") -> 0 | AF19: =COUNTIF(P30:P40,">=3") -> 0 | AG19: =COUNTIF(P30:P40,">=10") -> 0
A20: 13. | B20: 17.4 | C20: 23.1 | D20: 10.9 | E20: 11.1 | F20: 47 | G20: 71 | H20: 4.8 | I20: . | L20: 9.4 | M20: 1020 | N20: 11.7 | O20: 1 | V20: 3
A21: 14. | B21: 17.2 | C21: 22.1 | D21: 12.7 | E21: 12.8 | F21: 63 | G21: 76 | H21: 5.8 | I21: . | L21: 8 | M21: 1020.5 | N21: 12.9 | O21: 1 | V21: 3 | AA21: Max TT | AB21: Max TxTx | AC21: Min TgTg | AE21: Max RR
A22: 15. | B22: 16.2 | C22: 21.4 | D22: 11.6 | E22: 10.6 | F22: 51 | G22: 74 | H22: 5.5 | I22: . | L22: 6.7 | M22: 1021.4 | N22: 11.4 | O22: 1 | V22: 3 | AA22: =MAX(B6:B15,B18:B27,B30:B40) -> 27.9 | AB22: =MAX(C6:C15,C18:C27,C30:C40) -> 34.7 | AC22: =MIN(E6:E15,E18:E27,E30:E40) -> 9.4 | AE22: =MAX(I6:I15,I18:I27,I30:I40) -> 24
A23: 16. | B23: 18.3 | C23: 25.6 | D23: 9.8 | E23: 9.4 | F23: 43 | G23: 69 | H23: 2.8 | I23: . | L23: 13 | M23: 1023 | N23: 11.8 | O23: 1 | V23: 3 | AA23: Min TT | AB23: Min TnTn | AC23: Min U14 | AE23: Max SS
A24: 17. | B24: 19.7 | C24: 26.7 | D24: 11.7 | E24: 11.7 | F24: 41 | G24: 68 | H24: 5 | I24: . | L24: 10.8 | M24: 1022.5 | N24: 13.1 | O24: 1 | V24: 2 | AA24: =MIN(B6:B15,B18:B27,B30:B40) -> 14.7 | AB24: =MIN(D6:D15,D18:D27,D30:D40) -> 9.8 | AC24: =MIN(F6:F15,F18:F27,F30:F40) -> 26 | AE24: =MAX(P6:P15,P18:P27,P30:P40) -> 0
A25: 18. | B25: 20.3 | C25: 27.7 | D25: 12.9 | E25: 12.8 | F25: 45 | G25: 70 | H25: 3.3 | I25: . | L25: 10.2 | M25: 1022.3 | N25: 14.4 | O25: 1 | V25: 2
A26: 19. | B26: 20.6 | C26: 26.2 | D26: 13.8 | E26: 13.9 | F26: 48 | G26: 69 | H26: 3.5 | I26: . | L26: 11.4 | M26: 1020 | N26: 14.3 | O26: 1 | V26: 4
A27: 20. | B27: 19.9 | C27: 25.8 | D27: 16.1 | E27: 15.6 | F27: 44 | G27: 69 | H27: 4 | I27: . | L27: 5.5 | M27: 1020 | N27: 13.8 | O27: 1 | V27: 3
A28: Su | B28: =SUM(B18:B27) -> 180.7 | C28: =SUM(C18:C27) -> 236.4 | D28: =SUM(D18:D27) -> 123.8 | E28: =SUM(E18:E27) -> 121.3 | F28: XXX | G28: =SUM(G18:G27) -> 720 | H28: =SUM(H18:H27) -> 49 | I28: =SUM(I18:I27) -> 0 | J28: =SUM(K18:K27) -> 0 | L28: =SUM(L18:L27) -> 78.1 | M28: =SUM(M18:M27) -> 10206.7 | N28: =SUM(N18:N27) -> 126.1 | O28: =SUM(O18:O27) -> 10 | P28: =COUNT(P18:P27) -> 0 | Q28: X | R28: =SUM(R18:R27) -> 0 | S28: =SUM(S18:S27) -> 0 | T28: =SUM(T18:T27) -> 0 | U28: =SUM(U18:U27) -> 0 | V28: XXX
A29: Mi | B29: =AVERAGE(B18:B27) -> 18.07 | C29: =AVERAGE(C28/10) -> 23.64 | D29: =AVERAGE(D28/10) -> 12.38 | E29: =AVERAGE(E28/10) -> 12.13 | F29: XXX | G29: =AVERAGE(G28/10) -> 72 | H29: =AVERAGE(H28/10) -> 4.9 | I29: XXXXX | J29: XX | L29: XXXX | M29: =AVERAGE(M28/10) -> 1020.67 | N29: =AVERAGE(N28/10) -> 12.61 | O29: =O28/10 -> 1 | P29: XXX | Q29: X | R29: XX | S29: XX | T29: XX | U29: XX | V29: =AVERAGE(V18:V27) -> 2.9
A30: 21. | B30: 19.9 | C30: 27.8 | D30: 11.3 | E30: 11.1 | F30: 37 | G30: 65 | H30: 0.1 | I30: . | L30: 13.1 | M30: 1021.6 | N30: 12.5 | O30: 1 | V30: 3
A31: 22. | B31: 21.5 | C31: 29.7 | D31: 12.2 | E31: 11.1 | F31: 29 | G31: 60 | H31: 1.2 | I31: . | L31: 13.1 | M31: 1017.7 | N31: 12.3 | O31: 1 | V31: 2
A32: 23. | B32: 21.4 | C32: 29.8 | D32: 13.3 | E32: 12.8 | F32: 37 | G32: 61 | H32: 2.2 | I32: . | L32: 10.7 | M32: 1014.3 | N32: 13 | O32: 1 | V32: 3
A33: 24. | B33: 21.7 | C33: 30.2 | D33: 11.9 | E33: 11.7 | F33: 28 | G33: 58 | H33: 4.1 | I33: 0.9 | J33: R | L33: 11.2 | M33: 1014.4 | N33: 11.8 | O33: 1 | R33: 1 | V33: 3
A34: 25. | B34: 20.9 | C34: 26.9 | D34: 17.4 | E34: 17.8 | F34: 50 | G34: 78 | H34: 5.8 | I34: . | L34: 4.8 | M34: 1015.9 | N34: 16.6 | O34: 0 | V34: 2
A35: 26. | B35: 23.4 | C35: 31.2 | D35: 15.3 | E35: 15 | F35: 34 | G35: 67 | H35: 3.6 | I35: . | L35: 9.8 | M35: 1014.7 | N35: 16.2 | O35: 1 | V35: 3
A36: 27. | B36: 26.4 | C36: 34.4 | D36: 16.8 | E36: 16.7 | F36: 33 | G36: 59 | H36: 3.1 | I36: . | L36: 9.8 | M36: 1010.6 | N36: 16.8 | O36: 0 | V36: 2
A37: 28. | B37: 27.9 | C37: 34.7 | D37: 20.6 | E37: 18.9 | F37: 26 | G37: 50 | H37: 4 | I37: 10.8 | J37: R | L37: 6.7 | M37: 1009.9 | N37: 15.9 | O37: 1 | R37: 1 | V37: 3
A38: 29. | B38: 20.4 | C38: 24.6 | D38: 16.8 | E38: 16.4 | F38: 68 | G38: 87 | H38: 7.6 | I38: 24 | J38: R | L38: 0.8 | M38: 1012.6 | N38: 18.4 | O38: 1 | R38: 1 | S38: 1 | V38: 4 | W38: 3
A39: 30. | B39: 19.4 | C39: 24.1 | D39: 16.1 | E39: 16.2 | F39: 50 | G39: 77 | H39: 6.1 | I39: 0.7 | J39: R | L39: 3.5 | M39: 1016.3 | N39: 15 | O39: 1 | R39: 1 | S39: 1 | V39: 3 | W39: 2
A40: 31. | B40: 19.5 | C40: 23.3 | D40: 15.6 | E40: 14.4 | F40: 64 | G40: 74 | H40: 6 | I40: 0 | L40: 1.5 | M40: 1017.3 | N40: 14.8 | O40: 1 | V40: 4
A41: Su | B41: =SUM(B30:B40) -> 242.4 | C41: =SUM(C30:C40) -> 316.7 | D41: =SUM(D30:D40) -> 167.3 | E41: =SUM(E30:E40) -> 162.1 | F41: XXX | G41: =SUM(G30:G40) -> 736 | H41: =SUM(H30:H40) -> 43.8 | I41: =SUM(I30:I40) -> 36.4 | J41: =SUM(K30:K40) -> 0 | L41: =SUM(L30:L40) -> 85 | M41: =SUM(M30:M40) -> 11165.3 | N41: =SUM(N30:N40) -> 163.3 | O41: =SUM(O30:O40) -> 9 | P41: =COUNT(P30:P40) -> 0 | Q41: X | R41: =SUM(R30:R40) -> 4 | S41: =SUM(S30:S40) -> 2 | T41: =SUM(T30:T40) -> 0 | U41: =SUM(U30:U40) -> 0 | V41: XXX
A42: Mi | B42: =AVERAGE(B30:B40) -> 22.03636364 | C42: =AVERAGE(C41/11) -> 28.79090909 | D42: 15.20909091 | E42: 14.73636364 | F42: XXX | G42: =AVERAGE(G41/10) -> 73.6 | H42: =AVERAGE(H41/11) -> 3.981818182 | I42: XXXXX | J42: XX | L42: XXXX | M42: =AVERAGE(M41/11) -> 1015.027273 | N42: =AVERAGE(N41/11) -> 14.84545455 | O42: 0.8181818182 | P42: XXX | Q42: X | R42: XX | S42: XX | T42: XX | U42: XX | V42: =AVERAGE(V30:V40) -> 2.909090909
A43: MSu | B43: =SUM(B16+B28+B41) -> 612.5 | C43: =SUM(C16+C28+C41) -> 800 | D43: =SUM(D16+D28+D41) -> 423.3 | E43: =SUM(E16+E28+E41) -> 416.2 | F43: XXX | G43: =SUM(G16+G28+G41) -> 2211 | H43: =SUM(H16+H28+H41) -> 135.7 | I43: =SUM(I16+I28+I41) -> 38.2 | J43: =SUM(J16+J28+J41) -> 0 | L43: =SUM(L16+L28+L41) -> 253.1 | M43: =SUM(M16+M28+M41) -> 31592 | N43: =SUM(N16+N28+N41) -> 431.6 | O43: XXX | P43: =SUM(P16+P28+P41) -> 0 | Q43: X | R43: =SUM(R16+R28+R41) -> 6 | S43: =SUM(S16+S28+S41) -> 2 | T43: =SUM(T16+T28+T41) -> 0 | U43: =SUM(U16+U28+U41) -> 0 | V43: XXX
A44: MMi | B44: =AVERAGE(B6:B15,B18:B27,B30:B40) -> 19.75806452 | C44: =AVERAGE(C43/31) -> 25.80645161 | D44: =AVERAGE(D43/31) -> 13.65483871 | E44: 13.42580645 | F44: XXX | G44: =AVERAGE(G43/30) -> 73.7 | H44: =AVERAGE(H43/31) -> 4.377419355 | I44: XXXXX | J44: XX | L44: XXXX | M44: =AVERAGE(M43/31) -> 1019.096774 | N44: =AVERAGE(N43/31) -> 13.92258065 | P44: XXX | Q44: X | R44: XX | S44: XX | T44: XX | U44: XX | V44: =AVERAGE(V17,V29,V42) -> 2.836363636
B46: Norm | C46: % v N.- | D46: Abw. | E46: Zahl der Tage | L46: Niederschlag mm | P46: Sonnensch.-dauer Std
B47: wert | C47: wert | D47: K | E47: Max.d.Lufttemp.°C | L47: >/= 0,1 | O47: =SUM(AE7:AE9) -> 6 | P47: ohne Sonne | V47: 1
A48: TTT | B48: 18.3 | C48: XXXX | D48: =SUM(B44-B48) -> 1.458064516 | E48: Tropentag/Hitzetag | I48: =SUM(AA7:AA9) -> 4 | L48: >/= 1,0 | O48: =SUM(AF7:AF9) -> 3 | P48: 0,1 bis 0,9 | V48: 1
A49: RRR | B49: 86 | C49: =SUM(I43*100/B49) -> 44.41860465 | D49: XXXX | E49: Sommertag | I49: =SUM(AB7:AB9) -> 17 | L49: >/= 3,0 | O49: =SUM(AG7:AG9) -> 2 | P49: >/= 10,0 | V49: =SUM(AC17:AC19) -> 14
A50: sss | B50: 220 | C50: =SUM(L43*100/B50) -> 115.0454545 | D50: XXXX | E50: Eistag | I50: =SUM(AC7:AC9) -> 0 | L50: >/=10,0 | O50: =SUM(AH7:AH9) -> 2 | P50: Schneedecke cm
A51: astr. | D51: XXXX | E51: Min.d.Lufttemp.°C | L51: >/= 20,0 | O51: 0 | P51: >/= 1 | V51: =SUM(AE17:AE19) -> 0
A52: mgl. | B52: 480 | C52: =SUM(L43*100/B52) -> 52.72916667 | D52: XXXX | E52: Frosttag | I52: =SUM(AA12:AA14) -> 0 | L52: Rel. Luftfeuchte 14 Uhr | P52: >/= 3 | V52: =SUM(AF17:AF19) -> 0
A53: sss | D53: XXXX | E53: starker Eistag | I53: =SUM(AB12:AB14) -> 0 | L53: >/=70% | O53: =SUM(AE12:AE14) -> 0 | P53: >/= 10 | V53: =SUM(AG17:AG19) -> 0
L54: </=40% | O54: =SUM(AG12:AG14) -> 7

Sheet Sichtst.
E1: Sichtweitenstatistik
B5: Wetterstation: Köttewitz | F5: Monat: | G5: Juli | K5: Jahr: | L5: 2013
A7: Dat. | B7: Nebeldauer | C7: Nebel | D7: Dunst | E7: Sicht | F7: Sicht | G7: Sicht | H7: Sicht
B8: in St. u. Min. | E8: mittel | F8: normal | G8: gut | H8: sehr gut
A9: 01. | B9: - | C9: =IF(R9=1,1,"-") -> - | D9: - | E9: - | F9: 1 | G9: 1 | H9: 1 | N9: =IF(ISNUMBER(B9),B9*24," ") ->  | O9: =IF(ISNUMBER(N9),IF(N9<1,1," ")," ") ->  | P9: =IF(ISNUMBER(N9),IF(N9<8,2," ")," ") ->  | Q9: =IF(ISNUMBER(N9),IF(N9<24,3," ")," ") ->  | R9: =MIN(O9:Q9) -> 0
A10: 02. | B10: - | C10: - | D10: - | E10: - | F10: 1 | G10: 1 | H10: - | R10: 0
A11: 03. | B11: - | C11: - | D11: - | E11: - | F11: 1 | G11: 1 | H11: - | R11: 0
A12: 04. | B12: - | C12: - | D12: - | E12: - | F12: 1 | G12: 1 | H12: - | R12: 0
A13: 05. | B13: - | C13: - | D13: - | E13: 1 | F13: - | G13: - | H13: - | R13: 0
A14: 06. | B14: - | C14: - | D14: - | E14: 1 | F14: 1 | G14: - | H14: - | R14: 0
A15: 07. | B15: - | C15: - | D15: - | E15: - | F15: 1 | G15: 1 | H15: - | R15: 0
A16: 08. | B16: - | C16: - | D16: - | E16: - | F16: 1 | G16: 1 | H16: - | R16: 0
A17: 09. | B17: - | C17: - | D17: - | E17: - | F17: 1 | G17: - | H17: - | R17: 0
A18: 10. | B18: - | C18: - | D18: - | E18: - | F18: 1 | G18: - | H18: - | R18: 0
A19: 11. | B19: - | C19: - | D19: - | E19: 1 | F19: 1 | G19: - | H19: - | R19: 0
A20: 12. | B20: - | C20: - | D20: - | E20: - | F20: 1 | G20: - | H20: - | R20: 0
A21: 13. | B21: - | C21: - | D21: - | E21: - | F21: 1 | G21: - | H21: - | R21: 0
A22: 14. | B22: - | C22: - | D22: - | E22: - | F22: 1 | G22: - | H22: - | R22: 0
A23: 15. | B23: - | C23: - | D23: - | E23: 1 | F23: 1 | G23: 1 | H23: - | R23: 0
A24: 16. | B24: - | C24: - | D24: - | E24: - | F24: 1 | G24: - | H24: - | R24: 0
A25: 17. | B25: - | C25: - | D25: - | E25: - | F25: 1 | G25: 1 | H25: - | R25: 0
A26: 18. | B26: - | C26: - | D26: - | E26: - | F26: 1 | G26: - | H26: - | R26: 0
A27: 19. | B27: - | C27: - | D27: - | E27: - | F27: 1 | G27: 1 | H27: - | R27: 0
A28: 20. | B28: - | C28: - | D28: - | E28: - | F28: 1 | G28: 1 | H28: - | R28: 0
A29: 21. | B29: - | C29: - | D29: - | E29: - | F29: 1 | G29: 1 | H29: 1 | R29: 0
A30: 22. | B30: - | C30: - | D30: - | E30: - | F30: - | G30: 1 | H30: - | R30: 0
A31: 23. | B31: - | C31: - | D31: - | E31: - | F31: 1 | G31: 1 | H31: - | R31: 0
A32: 24. | B32: - | C32: - | D32: - | E32: - | F32: 1 | G32: 1 | H32: - | R32: 0
A33: 25. | B33: - | C33: - | D33: - | E33: 1 | F33: 1 | G33: - | H33: - | R33: 0
A34: 26. | B34: - | C34: - | D34: - | E34: - | F34: 1 | G34: - | H34: - | R34: 0
A35: 27. | B35: - | C35: - | D35: - | E35: - | F35: 1 | G35: - | H35: - | R35: 0
A36: 28. | B36: - | C36: - | D36: - | E36: - | F36: 1 | G36: 1 | H36: - | R36: 0
A37: 29. | B37: - | C37: - | D37: 1 | E37: 1 | F37: 1 | G37: - | H37: - | R37: 0
A38: 30. | B38: - | C38: - | D38: - | E38: 1 | F38: 1 | G38: - | H38: - | R38: 0
A39: 31. | B39: - | C39: - | D39: - | E39: - | F39: 1 | G39: 1 | H39: - | R39: 0
A40: Su. | B40: XXXXXXXXX | C40: =SUM(C9:C39) -> 0 | D40: =SUM(D9:D39) -> 1 | E40: 7 | F40: 29 | G40: 16 | H40: 2
B42: Anzahl der Nebeltage : | E42: =SUM(C40) -> 0
B43: Anzahl der Tage Sicht >= 50 km : | E43: =SUM(G40) -> 16

Sheet Monatsdiagramm
A1: Klimadiagramm | C1: Wetterstation Köttewitz | I1: (213 m ü. NHN)
A3: Juli 2013
C5: aktuell | D5: langj. Mittel | E5: Abw. vom lj. Mittel
B6: höchste Temperatur (°C): | C6: =MAX('Daten für Diagr.'!C2:C29) -> 34.7 | D6: am | E6: 2013-07-27
B7: mittlere Temperatur (°C): | C7: ='Daten für Diagr.'!B33 -> 19.75806452 | D7: =Kurztabelle!B48 -> 18.3 | E7: =C7-D7 -> 1.458064516 | F7: K
B8: tiefste Temperatur (°C): | C8: =MIN('Daten für Diagr.'!D2:D29) -> 9.8 | D8: am | E8: 2013-07-16
B9: Niederschlagshöhe (mm): | C9: =Kurztabelle!I43 -> 38.2 | D9: =Kurztabelle!B49 -> 86 | E9: =100/D9*C9 -> 44.41860465 | F9: %
B10: Sonnenscheindauer (Std.)*: | C10: =Kurztabelle!L43 -> 253.1 | D10: =Kurztabelle!B50 -> 220 | E10: =100/D10*C10 -> 115.0454545 | F10: %
A66: *Die Wetterstation kann, durch geographische Hindernisse, nicht die maximal mögliche Sonnenscheindauer aufzeichnen. Es gilt ein Übergangsprozentsatz von: Nov - Feb 50 %; Mär & Okt 65 %; Apr & Sep 80 %; Mai - August 90 %.
A67: Diese Werte entsprechend annähernd 100 % (Normalwert Köttewitz). Nach 10 Jahren erfolgt die Umstellung des Prozentsatzes nach der örtlichen Aufzeichnung.

Sheet Daten für Diagr.
B1: Td | C1: Tmax | D1: Tmin | E1: RR | F1: Schnee | G1: Sonne | H1: Luftdr. | I1: MWT | J1: GWL | K1: Name | L1: Sonstiges
A2: 2013-07-01 | B2: 18.4 | C2: 24.2 | D2: 12.4 | G2: 12.1 | H2: 1018.9 | I2: 17.95 | J2: Ww | K2: H Walburga
A3: 2013-07-02 | B3: 18.8 | C3: 25.1 | D3: 12.7 | E3: 0.3 | G3: 9.3 | H3: 1014.8 | I3: 18 | L3: Leicht schwül.
A4: 2013-07-03 | B4: 18.7 | C4: 25 | D4: 12.7 | E4: 1.5 | G4: 2.5 | H4: 1012.2 | I4: 18.05 | J4: Wz | K4: T Sky | L4: Mäßig schwül.
A5: 2013-07-04 | B5: 18.8 | C5: 22.8 | D5: 13.4 | G5: 6.8 | H5: 1019.1 | I5: 18.1 | L5: Mäßig schwül.
A6: 2013-07-05 | B6: 18.9 | C6: 24.3 | D6: 16.4 | G6: 1.4 | H6: 1026 | I6: 18.15 | J6: BM | K6: H Xena | L6: Mäßig schwül.
A7: 2013-07-06 | B7: 19.2 | C7: 24.3 | D7: 14.4 | G7: 10.2 | H7: 1030.1 | I7: 18.2 | L7: Mäßig schwül.
A8: 2013-07-07 | B8: 18.4 | C8: 24.4 | D8: 12.2 | G8: 13 | H8: 1029.6 | I8: 18.25 | J8: HB | L8: Leicht schwül.
A9: 2013-07-08 | B9: 19.1 | C9: 25.6 | D9: 11.4 | G9: 11.7 | H9: 1028.9 | I9: 18.3 | L9: Leicht schwül.
A10: 2013-07-09 | B10: 20.2 | C10: 27.1 | D10: 13 | G10: 12.1 | H10: 1023.6 | I10: 18.35 | L10: Leicht schwül.
A11: 2013-07-10 | B11: 18.9 | C11: 24.1 | D11: 14 | G11: 10.9 | H11: 1016.8 | I11: 18.4 | J11: NWa | L11: Leicht schwül.
A12: 2013-07-11 | B12: 14.7 | C12: 16.8 | D12: 11.9 | H12: 1017.4 | I12: 18.45 | J12: Na
A13: 2013-07-12 | B13: 16.4 | C13: 21 | D13: 12.4 | G13: 3.1 | H13: 1019.6 | I13: 18.5
A14: 2013-07-13 | B14: 17.4 | C14: 23.1 | D14: 10.9 | G14: 9.4 | H14: 1020 | I14: 18.5 | L14: Leicht schwül.
A15: 2013-07-14 | B15: 17.2 | C15: 22.1 | D15: 12.7 | G15: 8 | H15: 1020.5 | I15: 18.55 | L15: Die 1. Heuschrecken sind zu hören. Leicht schwül.
A16: 2013-07-15 | B16: 16.2 | C16: 21.4 | D16: 11.6 | G16: 6.7 | H16: 1021.4 | I16: 18.55 | J16: BM | K16: H Yasmine
A17: 2013-07-16 | B17: 18.3 | C17: 25.6 | D17: 9.8 | G17: 13 | H17: 1023 | I17: 18.55 | L17: Beginn der Goldrutenblüte.
A18: 2013-07-17 | B18: 19.7 | C18: 26.7 | D18: 11.7 | G18: 10.8 | H18: 1022.5 | I18: 18.6 | J18: HB | L18: Leicht schwül.
A19: 2013-07-18 | B19: 20.3 | C19: 27.7 | D19: 12.9 | G19: 10.2 | H19: 1022.3 | I19: 18.55 | L19: Leicht schwül.
A20: 2013-07-19 | B20: 20.6 | C20: 26.2 | D20: 13.8 | G20: 11.4 | H20: 1020 | I20: 18.55 | L20: Leicht schwül.
A21: 2013-07-20 | B21: 19.9 | C21: 25.8 | D21: 16.1 | G21: 5.5 | H21: 1020 | I21: 18.5 | L21: Leicht schwül.
A22: 2013-07-21 | B22: 19.9 | C22: 27.8 | D22: 11.3 | G22: 13.1 | H22: 1021.6 | I22: 18.5 | J22: HNa | L22: Beginn der Beifußblüte.
A23: 2013-07-22 | B23: 21.5 | C23: 29.7 | D23: 12.2 | G23: 13.1 | H23: 1017.7 | I23: 18.45 | L23: Leicht schwül. Beginn der Gerstenernt.
A24: 2013-07-23 | B24: 21.4 | C24: 29.8 | D24: 13.3 | G24: 10.7 | H24: 1014.3 | I24: 18.4 | L24: Leicht schwül.
A25: 2013-07-24 | B25: 21.7 | C25: 30.2 | D25: 11.9 | E25: 0.9 | G25: 11.2 | H25: 1014.4 | I25: 18.4 | L25: Leicht schwül.
A26: 2013-07-25 | B26: 20.9 | C26: 26.9 | D26: 17.4 | G26: 4.8 | H26: 1015.9 | I26: 18.35 | J26: SWa | K26: H Zlatka | L26: Mäßig schwül.
A27: 2013-07-26 | B27: 23.4 | C27: 31.2 | D27: 15.3 | G27: 9.8 | H27: 1014.7 | I27: 18.3 | L27: Mäßig schwül.
A28: 2013-07-27 | B28: 26.4 | C28: 34.4 | D28: 16.8 | G28: 9.8 | H28: 1010.6 | I28: 18.25 | J28: Sz | K28: T Zaki | L28: Stark schwül.
A29: 2013-07-28 | B29: 27.9 | C29: 34.7 | D29: 20.6 | E29: 10.8 | G29: 6.7 | H29: 1009.9 | I29: 18.2 | L29: Mäßig schwül.
A30: 2013-07-29 | B30: 20.4 | C30: 24.6 | D30: 16.8 | E30: 24 | G30: 0.8 | H30: 1012.6 | I30: 18.15 | K30: T Bernd | L30: Stark schwül. Von 03:05 Uhr - 03:24 Uhr mäßiger Dunst. Von 01:25 Uhr - 01:34 Uhr; 19:05 Uhr - 19:29 Uhr leichter Dunst. Von 01:25 - 01:34 Uhr; 03:05 Uhr - 03:24 Uhr; 19:05 Uhr - 19:29 Uhr Sichteinschränkung durch Starkniederschlag.
A31: 2013-07-30 | B31: 19.4 | C31: 24.1 | D31: 16.1 | E31: 0.7 | G31: 3.5 | H31: 1016.3 | I31: 18.1 | L31: Mäßig schwül.
A32: 2013-07-31 | B32: 19.5 | C32: 23.3 | D32: 15.6 | G32: 1.5 | H32: 1017.3 | I32: 18.05 | J32: Wa | K32: H Antonia | L32: Leicht schwül.
A33: Durchschnitt | B33: =AVERAGE(B2:B32) -> 19.75806452 | C33: =AVERAGE(C2:C32) -> 25.80645161 | D33: =AVERAGE(D2:D32) -> 13.66774194 | H33: =AVERAGE(H2:H32) -> 1019.096774 | I33: =AVERAGE(I2:I32) -> 18.32903226
A34: Mittel | B34: 18.3 | E34: 86 | F34: - | G34: 220 | H34: 1015.5
A90: 1
A91: 2
A92: 3
A93: 4
A94: 5
A95: 6
A96: 7
A97: 8
A98: 9
A99: 10
A100: 11
A101: 12
A102: 13
A103: 14
A104: 15
A105: 16
A106: 17
A107: 18
A108: 19
A109: 20
A110: 21
A111: 22
A112: 23
A113: 24
A114: 25
A115: 26
A116: 27
A117: 28
A118: 29
A119: 30
A120: 31

Sheet Erdbodenst.
E1: Erdbodentemperatur
B5: Wetterstation: Köttewitz | F5: Monat: | G5: Juli | K5: Jahr: | L5: 2013
A7: Dat. | B7: 7 Uhr | C7: 8 Uhr | D7: 12 Uh | E7: 13 Uhr | F7: 20 Uhr | H7: NN
A9: 01. | B9: 15,2 °C/15,7 °C | D9: 22,4 °C/17,4 °C | F9: 22,9 °C/ 20,8 °C | H9: n
A10: 02. | B10: 17,2 °C/17,4 °C | D10: 24,6 °C/19,9 °C | F10: 22,6 °C/21,0 °C | H10: n
A11: 03. | B11: 17,7 °C/18,4 °C | D11: 25,2 °C/20,4 °C | F11: 21,5 °C/21,0 °C | H11: n
A12: 04. | B12: 19,2 °C/18,6 °C | D12: 22,6 °C/19,4 °C | F12: 21,4 °C/20,7 °C | H12: n
A13: 05. | B13: 19,8 °C/19,4 °C | D13: 22,2 °C/20,2 °C | F13: 22,4 °C/22,0 °C | H13: t
A14: 06. | B14: 17,9 °C/18,8 °C | D14: 24,8 °C/20,4 °C | F14: 22,3 °C/21,4 °C | H14: n
A15: 07. | B15: 17,5 °C/19,6 °C | D15: 31,8 °C/23,8 °C | F15: 23,1 °C/24,6 °C | H15: h
A16: 08. | B16: 17,9 °C/19,1 °C | D16: 27,1 °C/22,0 °C | F16: 25,2 °C/25,0 °C | H16: n
A17: 09. | B17: 18,9 °C/19,9 °C | D17: 27,8 °C/22,2 °C | F17: 26,9 °C/26,0 °C | H17: n
A18: 10. | B18: 19,6 °C/20,4 °C | D18: 27,9 °C/23,1 °C | F18: 25,6 °C/25,6 °C | H18: n
A19: 11. | B19: 18,4 °C/20,0 °C | D19: 21,4 °C/20,2 °C | F19: 19,6 °C/20,5 °C | H19: t
A20: 12. | B20: 18,0 °C/18,0 °C | D20: 18,2 °C/17,8 °C | F20: 18,0 °C/20,2 °C | H20: t
A21: 13. | B21: 18,6 °C/19,4 °C | D21: 25,2 °C/22,4 °C | F21: 23,6 °C/23,4 °C | H21: n | I21: 9
A22: 14. | B22: 17,6 °C/19,0 °C | D22: 27,4 °C/23,2 °C | F22: 25,0 °C/24,0 °C | H22: n | I22: 9
A23: 15. | B23: 18,9 °C/19,1 °C | D23: 25,1 °C/22,8 °C | F23: 24,5 °C/24,2 °C | H23: n | I23: 9
A24: 16. | B24: 17,7 °C/19,0 °C | D24: 27,2 °C/21,6 °C | F24: 27,2 °C/26,3 °C | H24: n | I24: 9
A25: 17. | B25: 20,2 °C/19,2 °C | D25: 28,2 °C/23,2 °C | F25: 27,7 °C/26,8 °C | H25: n | I25: 9
A26: 18. | B26: 19,8 °C/20,8 °C | D26: 28,7 °C/23,0 °C | F26: 27,9 °C/27,2 °C | H26: n | I26: 9
A27: 19. | B27: 20,0 °C/21,2 °C | D27: 30,0 °C/24,0 °C | F27: 28,5 °C/27,6 °C | H27: n | I27: 9
A28: 20. | B28: 19,0 °C/21,4 °C | D28: 28,0 °C/24,6 °C | F28: 26,8 °C/26,6 °C | H28: n | I28: 9
A29: 21. | B29: 18,9 °C/20,4 °C | D29: 29,3 °C/24,1 °C | F29: 26,8 °C/26,4 °C | H29: h | I29: 9
A30: 22. | B30: 19,0 °C/20,4 °C | D30: 29,8 °C/24,0 °C | F30: 28,4 °C/27,8 °C | H30: h | I30: 9
A31: 23. | B31: 19,6 °C/21,4 °C | D31: 30,0 °C/24,4 °C | F31: 28,8 °C/28,1 °C | H31: n | I31: 9
A32: 24. | B32: 19,8 °C/ 21,5 °C | D32: 29,9 °C/24,2 °C | F32: 26,4 °C/28,3 °C | H32: n | I32: 9
A33: 25. | B33: 22,4 °C/23,4 °C | D33: 28,2 °C/23,0 °C | F33: 28,0 °C/27,3 °C | H33: n | I33: 9
A34: 26. | B34: 21,4 °C/22,2 °C | D34: 30,0 °C/24,4 °C | F34: 29,0 °C/28,2 °C | H34: n | I34: 9
A35: 27. | B35: 23,6 °C/ 22,8 °C | D35: 32,3 °C/26,4 °C | F35: 31,0 °C/29,9 °C | H35: n | I35: 9
A36: 28. | B36: 25,8 °C/25,6 °C | D36: 31,0 °C/26,8 °C | F36: 31,8 °C/30,2 °C | H36: n | I36: 9
A37: 29. | B37: 23,6 °C/24,6 °C | D37: 27,6 °C/25,6 °C | F37: 24,0 °C/25,4 °C | H37: t
A38: 30. | B38: 20,2 °C/21,6 °C | D38: 24,8 °C/23,6 °C | F38: 24,0 °C/24,8 °C | H38: n
A39: 31. | B39: 19,8 °C/20,8 °C | D39: 23,0 °C/21,4 °C | F39: 22,7 °C/24,4 °C | H39: n
